bitfinex/quotes_SOLUSD_20250522
["timestamp","ask_amount","ask_price","bid_price","bid_amount"]
[1747947158183,0.14216157,178.27,178.26,36.18]
[1747947158374,3.21607385,178.31,178.26,36.18]
[1747947158576,0.14216157,178.3,178.26,36.18]
[1747947159099,2.09349603,178.29,178.26,36.18]
[1747947159376,2.09349603,178.29,178.28,26.0]
[1747947159768,0.14216157,178.31,178.28,26.0]
[1747947160354,2.09349779,178.3,178.28,26.0]
[1747947160577,2.09349779,178.3,178.28,31.60910594]
[1747947160969,0.14216157,178.32,178.28,26.0]
[1747947162582,5.75025344,178.32,178.28,26.0]
[1747947164065,0.14216157,178.32,178.28,26.0]
[1747947164392,5.75015975,178.32,178.28,26.0]
[1747947165280,0.14216157,178.32,178.28,26.0]
[1747947166099,0.14216157,178.32,178.29,36.18]
[1747947166880,5.75006165,178.32,178.29,36.18]
[1747947168906,0.14216157,178.32,178.29,36.18]
[1747947176501,0.14216157,178.34,178.31,26.0]
[1747947176684,0.14216157,178.32,178.31,26.0]
[1747947178187,5.7484855,178.37,178.31,26.0]
[1747947178383,18.79181043,178.36,178.33,26.0]
[1747947178591,18.79181043,178.36,178.31,5.60812511]
[1747947178998,5.74887743,178.36,178.31,31.60812511]
[1747947179199,2.09452892,178.35,178.31,31.60812511]
[1747947179403,2.09452892,178.35,178.31,26.0]
[1747947179908,5.74856696,178.37,178.31,26.0]
[1747947180805,0.14216157,178.35,178.31,26.0]
[1747947182478,5.74853556,178.37,178.31,31.60815574]
[1747947183408,0.14216157,178.35,178.31,31.60815574]
[1747947184192,0.14216157,178.35,178.31,26.0]
[1747947187307,5.60704266,178.35,178.31,26.0]
[1747947191702,5.60704266,178.35,178.32,36.14]
[1747947192709,0.14216157,178.35,178.32,36.14]
[1747947193598,5.60697674,178.35,178.32,36.14]
[1747947205635,2.09580942,178.34,178.32,36.14]
[1747947206223,2.09580942,178.34,178.33,62.1]
[1747947206525,5.60697674,178.35,178.33,62.1]
[1747947207704,5.7489025,178.36,178.33,62.1]
[1747947207916,0.14216157,178.35,178.33,62.1]
[1747947209235,18.79181043,178.38,178.33,62.1]
[1747947209417,0.14216157,178.36,178.33,62.1]
[1747947210028,2.0960264,178.35,178.33,62.1]
[1747947210517,2.0960264,178.35,178.33,67.70755949]
[1747947210717,0.14216157,178.37,178.33,67.70755949]
[1747947211307,0.14216157,178.37,178.33,62.1]
[1747947211507,2.09620883,178.36,178.33,62.1]
[1747947212428,2.09620883,178.35,178.33,62.1]
[1747947213129,5.74855006,178.37,178.33,62.1]
[1747947213710,2.09641051,178.36,178.33,62.1]
[1747947214535,2.09641051,178.35,178.33,62.1]
[1747947215220,5.60666602,178.36,178.33,62.1]
[1747947216237,5.74860443,178.37,178.33,62.1]
[1747947216440,2.09670208,178.35,178.33,62.1]
[1747947217243,5.74860443,178.37,178.33,62.1]
[1747947217840,2.09717074,178.36,178.33,62.1]
[1747947218236,7.70383385,178.36,178.33,62.1]
[1747947218822,2.09717074,178.35,178.33,62.1]
[1747947219641,5.60666311,178.36,178.33,62.1]
[1747947224143,5.74860627,178.37,178.33,62.1]
[1747947224324,2.09727681,178.36,178.33,62.1]
[1747947225336,2.09727681,178.36,178.34,36.1]
[1747947225542,5.74860627,178.37,178.34,36.1]
[1747947226856,7.70369593,178.36,178.34,36.1]
[1747947227653,5.60664063,178.36,178.34,36.1]
[1747947230250,5.60664063,178.36,178.35,36.06]
[1747947230453,7.70339501,178.36,178.35,36.06]
[1747947236454,7.70342491,178.36,178.35,36.06]
[1747947236960,7.70337492,178.36,178.35,36.06]
[1747947238652,2.09673429,178.36,178.35,36.06]
[1747947240939,2.09673429,178.36,178.35,40.50715201]
[1747947242060,5.6054691,178.4,178.35,40.50715201]
[1747947242749,2.09634017,178.39,178.35,40.50715201]
[1747947243541,5.6054691,178.4,178.35,40.50715201]
[1747947243838,18.79181043,178.43,178.36,67.8907]
[1747947244254,2.09593627,178.42,178.36,67.8907]
[1747947244767,2.09593627,178.41,178.37,5.60632393]
[1747947245560,2.09593627,178.4,178.37,5.60632393]
[1747947246360,5.60412463,178.44,178.37,5.60632393]
[1747947246565,5.60412463,178.44,178.4,26.0]
[1747947246742,5.60412463,178.44,178.41,36.06]
[1747947247162,2.09402063,178.43,178.41,36.06]
[1747947247951,5.60412463,178.44,178.41,36.06]
[1747947249465,0.14216157,178.44,178.41,36.06]
[1747947250351,5.60391948,178.45,178.41,36.06]
[1747947251343,2.09130051,178.44,178.41,36.06]
[1747947252149,7.69543206,178.44,178.41,36.06]
[1747947252350,5.60413155,178.44,178.41,36.06]
[1747947253244,0.14216157,178.43,178.41,36.06]
[1747947253449,18.79181043,178.43,178.41,36.06]
[1747947254259,24.25440169,178.42,178.41,36.06]
[1747947254454,24.39656326,178.42,178.41,36.06]
[1747947254650,26.48727326,178.42,178.41,36.06]
[1747947267561,26.62943483,178.42,178.41,36.06]
[1747947268576,0.14216157,178.41,178.37,36.0]
[1747947269270,2.09071,178.4,178.37,36.0]
[1747947269663,0.14216157,178.38,178.37,36.0]
[1747947271185,0.14216157,178.38,178.36,34.2907]
[1747947271376,18.79181043,178.38,178.36,36.0]
[1747947271886,5.60632393,178.37,178.36,36.0]
[1747947272070,7.69885426,178.37,178.36,36.0]
[1747947273595,26.49066469,178.37,178.36,36.0]
[1747947273894,26.63282626,178.37,178.36,36.0]
[1747947274267,26.49066469,178.37,178.36,36.0]
[1747947279794,7.84101583,178.37,178.36,36.0]
[1747947285997,5.7484855,178.37,178.36,36.0]
[1747947290786,26.48694483,178.37,178.36,36.0]
[1747947294595,24.39813436,178.37,178.36,36.0]
[1747947296810,26.48906451,178.37,178.36,36.0]
[1747947301710,26.48906451,178.37,178.34,35.98]
[1747947302404,5.74911419,178.35,178.34,35.98]
[1747947307208,24.39876305,178.35,178.34,35.98]
[1747947307415,26.6351162,178.35,178.34,35.98]
[1747947310205,26.6351162,178.35,178.34,35.98]
[1747947314407,39.07932001,178.35,178.34,35.98]
[1747947314806,0.14216157,178.33,178.29,35.98]
[1747947315007,2.09419158,178.32,178.29,35.98]
[1747947315640,18.79181043,178.31,178.29,35.98]
[1747947315938,20.88600201,178.3,178.29,35.98]
[1747947316121,26.49452696,178.3,178.29,35.98]
[1747947317340,26.63668853,178.3,178.29,35.98]
[1747947317937,26.63668853,178.3,178.24,35.98]
[1747947317938,18.933972,178.29,178.24,35.98]
[1747947318629,18.933972,178.27,178.24,35.98]
[1747947319336,0.14216157,178.25,178.24,35.98]
[1747947319547,5.75225974,178.25,178.24,35.98]
[1747947320025,7.84645132,178.25,178.24,35.98]
[1747947320409,2.09419158,178.25,178.24,35.98]
[1747947320637,5.75225974,178.25,178.24,35.98]
[1747947321332,24.4019086,178.25,178.24,35.98]
[1747947322828,24.54407017,178.25,178.24,35.98]
[1747947323946,26.6322327,178.25,178.24,35.98]
[1747947324927,46.09549604,178.25,178.24,35.98]
[1747947325124,0.14216157,178.23,178.19,35.96]
[1747947325608,18.933972,178.21,178.19,35.96]
[1747947326720,18.79181043,178.21,178.19,35.96]
[1747947327947,24.26132113,178.2,178.19,35.96]
[1747947328328,24.4034827,178.2,178.19,35.96]
[1747947329543,24.54564427,178.2,178.19,35.96]
[1747947334231,24.4034827,178.2,178.19,35.96]
[1747947339558,5.75383384,178.2,178.19,35.96]
[1747947339733,24.4034827,178.2,178.19,35.96]
[1747947343166,5.75383384,178.2,178.19,35.96]
[1747947344944,5.89599541,178.2,178.19,35.96]
[1747947346044,0.14216157,178.18,178.14,35.98]
[1747947346242,18.79181043,178.17,178.12,43.7619]
[1747947346439,0.14216157,178.17,178.12,43.7619]
[1747947346764,0.14216157,178.14,178.12,43.7619]
[1747947347344,0.14216157,178.18,178.12,43.7619]
[1747947347859,0.14216157,178.18,178.12,83.01605441]
[1747947349362,0.14216157,178.17,178.13,26.0]
[1747947349656,0.14216157,178.17,178.15,26.0]
[1747947349868,0.14216157,178.21,178.15,26.0]
[1747947350052,18.79181043,178.21,178.15,26.0]
[1747947352969,0.14216157,178.19,178.16,35.94]
[1747947354967,5.75423157,178.19,178.16,35.94]
[1747947356676,0.14216157,178.19,178.16,35.94]
[1747947357863,5.61205655,178.19,178.16,35.94]
[1747947358443,0.14216157,178.18,178.16,35.94]
[1747947360451,5.61242274,178.18,178.16,35.94]
[1747947360767,5.75424866,178.19,178.16,35.94]
[1747947362359,0.14216157,178.19,178.16,35.94]
[1747947364675,5.61214479,178.19,178.16,35.94]
[1747947365048,5.61176029,178.2,178.16,35.94]
[1747947365270,0.14216157,178.19,178.16,35.94]
[1747947367454,0.14216157,178.19,178.17,35.94]
[1747947367657,2.09227555,178.18,178.17,35.94]
[1747947368571,0.14216157,178.19,178.17,35.94]
[1747947370077,21.86006703,178.22,178.17,44.1148]
[1747947370078,3.21041817,178.22,178.17,44.1148]
[1747947370278,3.21041817,178.22,178.17,49.72741406]
[1747947370580,5.75310529,178.23,178.17,49.72741406]
[1747947371148,2.09288507,178.22,178.17,49.72741406]
[1747947371381,0.14216157,178.21,178.17,44.1148]
[1747947371842,2.09288507,178.2,178.17,44.1148]
[1747947372448,5.61105047,178.22,178.17,49.72739662]
[1747947372647,5.75300167,178.23,178.17,49.72739662]
[1747947372847,5.75300167,178.23,178.17,75.72739662]
[1747947373479,2.09219825,178.22,178.17,75.72739662]
[1747947374081,2.09219825,178.21,178.17,75.72739662]
[1747947374686,5.75300167,178.23,178.17,75.72739662]
[1747947375781,2.09172277,178.22,178.17,75.72739662]
[1747947375970,7.70279134,178.22,178.17,75.72739662]
[1747947376567,2.09172277,178.21,178.17,75.72739662]
[1747947377167,5.75300716,178.23,178.17,75.72739662]
[1747947377887,2.09154154,178.22,178.17,75.72739662]
[1747947378968,5.75300716,178.23,178.2,26.0]
[1747947380697,5.75300716,178.23,178.18,26.0]
[1747947383280,0.14216157,178.21,178.18,26.0]
[1747947383989,0.14216157,178.21,178.17,44.1148]
[1747947384685,5.61167227,178.2,178.17,44.1148]
[1747947385768,5.61009817,178.25,178.2,26.0]
[1747947385977,0.14216157,178.24,178.21,26.0]
[1747947386878,5.75272318,178.24,178.21,26.0]
[1747947387605,5.61013671,178.25,178.21,26.0]
[1747947387783,5.61013671,178.25,178.22,7.7554]
[1747947387973,5.61013671,178.25,178.23,35.92]
[1747947390306,5.60979419,178.26,178.23,35.92]
[1747947390478,0.14216157,178.28,178.23,35.92]
[1747947391701,5.7513157,178.28,178.23,35.92]
[1747947392298,2.08797066,178.27,178.23,35.92]
[1747947392879,5.7513157,178.28,178.23,35.92]
[1747947400784,0.14216157,178.26,178.23,35.92]
[1747947402888,0.14216157,178.24,178.23,35.92]
[1747947404414,18.79181043,178.24,178.23,35.92]
[1747947404785,5.75257449,178.24,178.23,35.92]
[1747947406401,7.84046312,178.24,178.23,35.92]
[1747947407409,7.98262469,178.24,178.23,35.92]
[1747947409185,7.98262469,178.24,178.17,61.9]
[1747947409186,0.28432314,178.22,178.17,61.9]
[1747947409386,18.64964886,178.2,178.17,35.9]
[1747947409584,0.14216157,178.19,178.17,35.9]
[1747947410710,0.14216157,178.2,178.17,35.9]
[1747947411712,5.6119872,178.19,178.17,35.9]
[1747947414289,5.6119872,178.19,178.17,61.9]
[1747947415284,14.16873666,178.24,178.17,61.9]
[1747947415285,5.61072771,178.23,178.17,61.9]
[1747947415489,2.22940699,178.22,178.17,61.9]
[1747947416313,0.14216157,178.22,178.17,61.9]
[1747947417518,5.61135738,178.21,178.17,61.9]
[1747947426909,5.61041292,178.24,178.21,26.0]
[1747947428629,5.61041292,178.24,178.22,35.88]
[1747947439616,5.60978346,178.26,178.22,35.88]
[1747947439821,5.75194503,178.26,178.22,35.88]
[1747947440433,2.08954861,178.25,178.22,35.88]
[1747947441140,5.75194503,178.26,178.22,35.88]
[1747947442434,5.61041292,178.24,178.22,35.88]
[1747947443335,5.6102035,178.25,178.22,35.88]
[1747947443545,18.79181043,178.29,178.22,35.88]
[1747947443720,2.0912177,178.28,178.23,7.7508]
[1747947444411,5.60946878,178.27,178.23,7.7508]
[1747947445217,5.60821042,178.31,178.24,33.64]
[1747947445413,0.14216157,178.3,178.25,26.0]
[1747947445619,5.60821042,178.31,178.25,26.0]
[1747947446014,2.09163127,178.3,178.27,26.0]
[1747947446243,2.09163127,178.3,178.28,35.86]
[1747947446539,5.60883953,178.29,178.28,35.86]
[1747947446714,7.7004708,178.29,178.28,35.86]
[1747947448918,5.75037199,178.31,178.28,35.86]
[1747947449623,2.08952364,178.3,178.28,35.86]
[1747947450546,0.14216157,178.29,178.28,35.86]
[1747947451252,5.7510011,178.29,178.28,35.86]
[1747947451433,7.8393206,178.29,178.28,35.86]
[1747947451617,0.14216157,178.27,178.25,35.86]
[1747947451814,0.14216157,178.27,178.24,35.86]
[1747947453724,5.60978346,178.26,178.24,35.86]
[1747947455857,5.7513157,178.28,178.24,35.86]
[1747947456352,19.77420104,178.28,178.24,35.86]
[1747947458053,5.60978346,178.26,178.24,35.86]
[1747947460252,5.60946878,178.27,178.24,35.86]
[1747947461537,5.60852495,178.3,178.27,26.0]
[1747947461742,2.08943152,178.29,178.27,26.0]
[1747947462253,5.60915413,178.28,178.27,26.0]
[1747947462638,7.69858565,178.28,178.27,26.0]
[1747947465941,5.60915413,178.28,178.27,26.0]
[1747947466529,5.75068652,178.3,178.27,26.0]
[1747947467551,5.60915413,178.28,178.27,26.0]
[1747947470157,19.62918893,178.31,178.27,26.0]
[1747947470363,2.23334651,178.3,178.27,26.0]
[1747947471154,2.23334651,178.3,178.28,35.86]
[1747947471344,7.70002447,178.29,178.28,35.86]
[1747947478666,18.79181043,178.28,178.24,35.82]
[1747947478850,2.09118494,178.27,178.24,35.82]
[1747947479362,0.14216157,178.28,178.24,35.82]
[1747947480669,5.60946878,178.27,178.24,35.82]
[1747947480864,7.70082289,178.27,178.24,35.82]
[1747947481167,5.60946878,178.27,178.24,35.82]
[1747947483776,5.60883953,178.29,178.24,35.82]
[1747947484087,3.35439589,178.31,178.28,26.0]
[1747947484250,3.21223432,178.31,178.28,26.0]
[1747947484693,5.60758145,178.33,178.28,26.0]
[1747947484983,8.81958834,178.34,178.29,33.62]
[1747947485140,2.09252292,178.33,178.3,35.82]
[1747947485945,8.81958834,178.34,178.3,35.82]
[1747947486381,8.81958834,178.34,178.3,44.1362]
[1747947486752,5.60735402,178.34,178.3,44.1362]
[1747947487302,2.09202604,178.33,178.3,44.1362]
[1747947487661,5.60789591,178.32,178.3,44.1362]
[1747947489270,14.01843188,178.34,178.3,44.1362]
[1747947489887,2.09143865,178.33,178.3,44.1362]
[1747947490762,14.01843188,178.34,178.3,44.1362]
[1747947496784,14.01843188,178.34,178.3,7.79983134]
[1747947496988,14.01843188,178.34,178.31,35.82]
[1747947512980,2.08993501,178.33,178.31,35.82]
[1747947513594,14.01843188,178.34,178.31,35.82]
[1747947515125,14.01843188,178.34,178.32,35.78]
[1747947515619,0.14216157,178.33,178.32,35.78]
[1747947516926,5.74974302,178.33,178.32,35.78]
[1747947520495,7.84091861,178.33,178.32,35.78]
[1747947521927,5.74974302,178.33,178.32,35.78]
[1747947523529,7.84105462,178.33,178.32,35.78]
[1747947525310,7.69889305,178.33,178.32,35.78]
[1747947534040,5.60758145,178.33,178.32,35.78]
[1747947534728,5.74974302,178.33,178.32,35.78]
[1747947534929,24.39939188,178.33,178.32,35.78]
[1747947536241,26.49568618,178.33,178.32,35.78]
[1747947541019,7.84603732,178.33,178.32,35.78]
[1747947541225,7.70387575,178.33,178.32,35.78]
[1747947546240,2.0962943,178.33,178.32,35.78]
[1747947546425,2.0962943,178.33,178.32,95.4]
[1747947546619,2.0962943,178.33,178.32,75.00789591]
[1747947547022,3.21607794,178.36,178.35,26.0]
[1747947547243,3.21607794,178.36,178.35,59.62]
[1747947547446,5.60621659,178.38,178.35,59.62]
[1747947547838,5.60569538,178.39,178.35,59.62]
[1747947550257,5.60538116,178.4,178.35,59.62]
[1747947553567,5.60538116,178.4,178.35,33.62]
[1747947558373,19.61883407,178.4,178.36,26.0]
[1747947558540,5.60600964,178.38,178.35,26.0]
[1747947564592,5.60600964,178.38,178.36,26.0]
[1747947569257,5.74817121,178.38,178.37,35.72]
[1747947572476,5.23817121,178.38,178.37,35.72]
[1747947573675,0.14216157,178.38,178.37,35.72]
[1747947574779,5.74817121,178.38,178.37,35.72]
[1747947580282,14.01345291,178.4,178.37,35.72]
[1747947580470,2.08803882,178.39,178.37,37.2825]
[1747947581060,2.08803882,178.39,178.37,70.8825]
[1747947581359,5.60381059,178.45,178.37,70.8825]
[1747947581693,0.14216157,178.44,178.4,26.0]
[1747947581867,19.61333706,178.45,178.4,26.0]
[1747947582265,5.60443871,178.43,178.4,26.0]
[1747947584188,19.61333706,178.45,178.4,26.0]
[1747947584684,2.08951706,178.44,178.4,26.0]
[1747947585588,2.08951706,178.43,178.4,26.0]
[1747947586489,5.60475283,178.42,178.4,26.0]
[1747947588486,0.14216157,178.44,178.4,26.0]
[1747947588870,2.08998257,178.43,178.4,26.0]
[1747947589683,5.60475283,178.42,178.4,26.0]
[1747947591191,5.60443871,178.43,178.4,26.0]
[1747947591591,2.09145328,178.42,178.4,26.0]
[1747947592493,5.60443871,178.43,178.4,26.0]
[1747947594079,2.09225491,178.42,178.4,26.0]
[1747947594491,2.09225491,178.42,178.41,35.68]
[1747947596289,7.69700774,178.42,178.41,35.68]
[1747947600972,21.70888981,178.42,178.37,1.5625]
[1747947601177,21.70888981,178.42,178.38,35.64]
[1747947601178,0.14216157,178.41,178.38,35.64]
[1747947602381,2.08935273,178.4,178.38,35.64]
[1747947603300,5.60569538,178.39,178.38,35.64]
[1747947605503,5.60538116,178.4,178.38,35.64]
[1747947606510,2.08970944,178.39,178.38,35.64]
[1747947607182,5.60538116,178.4,178.38,35.64]
[1747947610916,2.09004468,178.39,178.38,35.64]
[1747947612117,7.69574006,178.39,178.38,35.64]
[1747947615418,7.83790163,178.39,178.38,35.64]
[1747947629220,7.83790163,178.39,178.33,35.64]
[1747947629221,18.79181043,178.38,178.33,35.64]
[1747947629389,12.57491349,178.34,178.33,35.64]
[1747947629598,31.22456235,178.34,178.33,35.64]
[1747947629794,18.79181043,178.33,178.29,174.7]
[1747947630030,12.57491349,178.3,178.29,174.7]
[1747947630325,18.79181043,178.29,178.28,35.62]
[1747947630535,31.22456235,178.29,178.25,35.62]
[1747947630693,12.57491349,178.28,178.25,35.62]
[1747947630898,5.60946878,178.27,178.25,35.62]
[1747947632913,19.63163303,178.29,178.25,35.62]
[1747947644345,0.14216157,178.28,178.25,35.62]
[1747947645675,5.60946878,178.27,178.25,35.62]
[1747947656812,12.59385343,178.26,178.25,35.62]
[1747947657884,5.75194503,178.26,178.25,35.62]
[1747947662812,18.20363689,178.26,178.25,35.62]
[1747947663615,36.99544732,178.26,178.25,35.62]
[1747947663833,0.14216157,178.24,178.2,35.6]
[1747947664006,12.45169186,178.23,178.2,35.6]
[1747947664341,5.61135738,178.21,178.2,35.6]
[1747947665737,5.75351895,178.21,178.2,35.6]
[1747947680274,36.99702124,178.21,178.2,35.6]
[1747947680439,7.8377388,178.21,178.2,35.6]
[1747947681349,5.75351895,178.21,178.2,35.6]
[1747947696392,7.84126181,178.21,178.2,35.6]
[1747947696888,39.0847641,178.21,178.2,35.6]
[1747947698078,26.63307224,178.21,178.2,35.6]
[1747947698707,39.0847641,178.21,178.2,35.6]
[1747947702396,18.933972,178.2,178.16,35.6]
[1747947702797,2.08774286,178.19,178.16,35.6]
[1747947703428,5.75477873,178.17,178.16,35.6]
[1747947703920,5.46417873,178.17,178.16,35.6]
[1747947705212,7.55258207,178.17,178.16,35.6]
[1747947707116,5.75414877,178.19,178.16,35.6]
[1747947708018,0.14216157,178.17,178.16,35.6]
[1747947708721,2.23028385,178.17,178.16,35.6]
[1747947709211,7.84290101,178.17,178.16,35.6]
[1747947711328,5.75477873,178.17,178.16,35.6]
[1747947713904,5.61261716,178.17,178.16,35.6]
[1747947714109,5.61167227,178.2,178.16,35.6]
[1747947714309,5.61167227,178.2,178.17,1.6368]
[1747947714718,5.61167227,178.2,178.18,6.3921]
[1747947715823,5.61104253,178.22,178.18,6.3921]
[1747947717741,19.63864885,178.22,178.18,6.3921]
[1747947717940,0.14216157,178.21,178.17,1.6368]
[1747947718130,18.933972,178.21,178.17,1.6368]
[1747947719131,31.38566386,178.21,178.16,35.6]
[1747947720349,0.14216157,178.18,178.16,35.6]
[1747947722534,5.61261716,178.17,178.16,35.6]
[1747947724450,5.61167227,178.2,178.16,35.6]
[1747947725439,14.02743706,178.23,178.16,35.6]
[1747947725440,0.14216157,178.24,178.17,1.5285]
[1747947727665,5.61072771,178.23,178.17,1.5285]
[1747947729063,5.60946878,178.27,178.19,26.0]
[1747947729263,5.60946878,178.27,178.2,33.64]
[1747947729264,0.14216157,178.26,178.2,33.64]
[1747947729648,5.61009817,178.25,178.2,33.64]
[1747947736784,5.61009817,178.25,178.23,26.0]
[1747947736972,5.61009817,178.25,178.24,35.58]
[1747947748876,5.75225974,178.25,178.24,35.58]
[1747947766233,0.14216157,178.23,178.17,1.5285]
[1747947766411,12.59338118,178.18,178.13,35.56]
[1747947766616,18.64964886,178.17,178.13,35.56]
[1747947766803,31.10086847,178.17,178.13,35.56]
[1747947767405,0.14216157,178.15,178.13,35.56]
[1747947767714,5.61356236,178.14,178.13,35.56]
[1747947770019,5.75572393,178.14,178.13,35.56]
[1747947771232,24.40537279,178.14,178.13,35.56]
[1747947771433,24.54753436,178.14,178.13,35.56]
[1747947777155,50.54753436,178.14,178.13,35.56]
[1747947783555,84.06361774,178.14,178.09,41.8645]
[1747947784251,26.14216157,178.1,178.09,41.8645]
[1747947784457,26.14216157,178.1,178.09,35.56]
[1747947784650,0.14216157,178.1,178.09,35.56]
[1747947785687,5.7569847,178.1,178.09,35.56]
[1747947801702,19.79404253,178.1,178.05,35.56]
[1747947808210,19.65188096,178.1,178.06,26.0]
[1747947808413,19.65188096,178.1,178.08,26.0]
[1747947809028,5.61482313,178.1,178.09,1.595]
[1747947809923,5.61419267,178.12,178.09,27.595]
[1747947810095,14.03529123,178.13,178.1,6.1437]
[1747947810301,14.03529123,178.13,178.11,35.56]
[1747947811625,5.61356236,178.14,178.13,26.0]
[1747947812432,5.61261716,178.17,178.14,26.0]
[1747947812752,5.61261716,178.17,178.15,1.5237]
[1747947814038,5.61261716,178.17,178.16,6.1437]
[1747947814746,5.6119872,178.19,178.16,6.1437]
[1747947815051,5.6119872,178.19,178.17,35.52]
[1747947817048,14.02940049,178.2,178.17,35.52]
[1747947819646,5.61135738,178.21,178.17,35.52]
[1747947820226,0.14216157,178.2,178.17,35.52]
[1747947821854,5.6119872,178.19,178.17,35.52]
[1747947832552,19.63975084,178.21,178.17,35.52]
[1747947832787,5.61135738,178.21,178.17,35.52]
[1747947839583,5.61072771,178.23,178.17,35.52]
[1747947840565,5.61072771,178.23,178.18,33.64]
[1747947840765,5.61041292,178.24,178.18,33.64]
[1747947844566,19.63644523,178.24,178.18,33.64]
[1747947844979,0.14216157,178.23,178.18,33.64]
[1747947845894,19.63644523,178.24,178.18,33.64]
[1747947845895,5.61041292,178.24,178.18,33.64]
[1747947846094,5.61009817,178.25,178.2,6.195]
[1747947846402,0.14216157,178.29,178.2,6.195]
[1747947847674,5.60789591,178.32,178.23,26.0]
[1747947847905,5.60789591,178.32,178.24,41.675]
[1747947848397,5.60789591,178.32,178.27,26.0]
[1747947849182,19.6276357,178.32,178.27,26.0]
[1747947855320,0.14216157,178.31,178.24,41.675]
[1747947855618,5.60852495,178.3,178.27,26.0]
[1747947863907,19.62983734,178.3,178.24,41.675]
[1747947870539,19.62983734,178.3,178.25,35.48]
[1747947875572,19.62983734,178.3,178.26,35.48]
[1747947877853,5.60852495,178.3,178.27,1.614]
[1747947878035,5.60852495,178.3,178.27,35.234]
[1747947879235,19.62713886,178.33,178.27,35.234]
[1747947881163,0.14216157,178.32,178.25,108.5]
[1747947883674,0.14216157,178.23,178.19,35.44]
[1747947885383,5.61104253,178.22,178.19,35.44]
[1747947887056,0.14216157,178.25,178.19,35.44]
[1747947887764,5.61041292,178.24,178.19,35.44]
[1747947893390,0.14216157,178.23,178.19,35.44]
[1747947894489,5.61104253,178.22,178.19,35.44]
[1747947896489,5.61167227,178.2,178.19,35.44]
[1747947897190,5.75383384,178.2,178.19,35.44]
[1747947897792,5.61167227,178.2,178.19,35.44]
[1747947897984,5.61104253,178.22,178.19,35.44]
[1747947898794,19.63644523,178.24,178.19,35.44]
[1747947900600,0.14216157,178.23,178.19,35.44]
[1747947901098,18.933972,178.23,178.19,35.44]
[1747947901687,18.933972,178.23,178.19,35.46]
[1747947903097,0.14216157,178.21,178.19,35.46]
[1747947905606,5.61167227,178.2,178.19,35.46]
[1747947910419,5.75383384,178.2,178.19,35.46]
[1747947911826,24.54564427,178.2,178.19,35.46]
[1747947912707,5.89599541,178.2,178.19,35.46]
[1747947912908,24.54564427,178.2,178.19,35.46]
[1747947914112,5.75383384,178.2,178.19,35.46]
[1747947918344,0.14216157,178.19,178.15,35.42]
[1747947920552,5.61230216,178.18,178.15,35.42]
[1747947923748,19.64305757,178.18,178.14,1.5887]
[1747947923955,19.64305757,178.18,178.15,35.42]
[1747947925836,5.61230216,178.18,178.15,35.42]
[1747947926870,5.75383384,178.2,178.15,35.42]
[1747947927859,19.78301453,178.2,178.15,35.42]
[1747947945277,45.78301453,178.2,178.15,35.42]
[1747947945995,0.14216157,178.18,178.15,35.42]
[1747947947292,5.61261716,178.17,178.15,35.42]
[1747947964523,19.78411678,178.19,178.15,35.42]
[1747947989040,19.78411678,178.19,178.16,35.38]
[1747948003751,5.6119872,178.19,178.18,26.0]
[1747948003971,5.61072771,178.23,178.18,26.0]
[1747948004727,5.61072771,178.23,178.2,26.0]
[1747948005847,5.61009817,178.25,178.2,26.0]
[1747948006051,5.61009817,178.25,178.21,1.6132]
[1747948006237,5.61009817,178.25,178.24,26.0]
[1747948007172,14.16566165,178.28,178.24,26.0]
[1747948007173,5.60946878,178.27,178.24,26.0]